[Event "Titled Tuesday Blitz January 17 Late 2023"]
[White "Ivanisevic, Ivan"]
[Black "Nefedov, Sergey"]
[WhiteFideId "912417"]
[BlackFideId "24113417"]
[WhiteElo "2532"]
[BlackElo "2300"]
[Result "0-1"]
[Round "10"]
[TimeControl "180+2"]
[Date "2023.01.17"]
[WhiteClock "0:00:04"]
[BlackClock "0:00:26"]

1. c4 {[%clk 0:03:00]}  g6 {[%clk 0:02:58]} 2. d4 {[%clk 0:02:59]}  Bg7 {[%clk 0:02:58]} 3. Nc3 {[%clk 0:02:59]}  e6 {[%clk 0:02:55]} 4. e4 {[%clk 0:02:57]}  Ne7 {[%clk 0:02:55]} 5. h4 {[%clk 0:02:57]}  h6 {[%clk 0:02:54]} 6. f4 {[%clk 0:02:50]}  d5 {[%clk 0:02:54]} 7. e5 {[%clk 0:02:50]}  Nbc6 {[%clk 0:02:46]} 8. Nf3 {[%clk 0:02:49]}  h5 {[%clk 0:02:39]} 9. Be3 {[%clk 0:02:47]}  Nf5 {[%clk 0:02:39]} 10. Bf2 {[%clk 0:02:47]}  O-O {[%clk 0:02:35]} 11. Bd3 {[%clk 0:02:39]}  dxc4 {[%clk 0:02:34]} 12. Bxc4 {[%clk 0:02:36]}  a6 {[%clk 0:02:29]} 13. d5 {[%clk 0:02:02]}  Na5 {[%clk 0:02:28]} 14. Be2 {[%clk 0:01:53]}  exd5 {[%clk 0:02:26]} 15. Qxd5 {[%clk 0:01:48]}  Nc6 {[%clk 0:02:04]} 16. O-O-O {[%clk 0:01:41]}  Be6 {[%clk 0:02:02]} 17. Qc5 {[%clk 0:01:32]}  Qe7 {[%clk 0:01:50]} 18. Ng5 {[%clk 0:01:30]}  Rfd8 {[%clk 0:01:45]} 19. Qxe7 {[%clk 0:01:19]}  Ncxe7 {[%clk 0:01:40]} 20. Nxe6 {[%clk 0:01:20]}  fxe6 {[%clk 0:01:40]} 21. Bc4 {[%clk 0:01:20]}  Kf7 {[%clk 0:01:39]} 22. Ne4 {[%clk 0:01:17]}  Bh6 {[%clk 0:01:39]} 23. Ng5+ {[%clk 0:01:02]}  Bxg5 {[%clk 0:01:39]} 24. hxg5 {[%clk 0:01:03]}  Nd5 {[%clk 0:01:37]} 25. g4 {[%clk 0:00:31]}  hxg4 {[%clk 0:01:32]} 26. Rh7+ {[%clk 0:00:30]}  Ng7 {[%clk 0:01:31]} 27. Bxd5 {[%clk 0:00:28]}  Rxd5 {[%clk 0:01:19]} 28. Rxd5 {[%clk 0:00:27]}  exd5 {[%clk 0:01:18]} 29. e6+ {[%clk 0:00:28]}  Kg8 {[%clk 0:01:17]} 30. Rh6 {[%clk 0:00:29]}  Re8 {[%clk 0:01:16]} 31. Rxg6 {[%clk 0:00:27]}  Rxe6 {[%clk 0:01:17]} 32. Rxe6 {[%clk 0:00:23]}  Nxe6 {[%clk 0:01:17]} 33. Bg3 {[%clk 0:00:16]}  c5 {[%clk 0:01:13]} 34. Kd2 {[%clk 0:00:17]}  Ng7 {[%clk 0:01:11]} 35. Bf2 {[%clk 0:00:15]}  b6 {[%clk 0:01:10]} 36. b4 {[%clk 0:00:15]}  Ne6 {[%clk 0:00:54]} 37. bxc5 {[%clk 0:00:14]}  bxc5 {[%clk 0:00:54]} 38. Ke3 {[%clk 0:00:12]}  Kf7 {[%clk 0:00:48]} 39. f5 {[%clk 0:00:10]}  Nxg5 {[%clk 0:00:47]} 40. Kf4 {[%clk 0:00:11]}  Ne4 {[%clk 0:00:48]} 41. Be3 {[%clk 0:00:05]}  Kf6 {[%clk 0:00:27]} 42. Kxg4 {[%clk 0:00:05]}  d4 {[%clk 0:00:28]} 43. Bf4 {[%clk 0:00:04]}  c4 {[%clk 0:00:26]} 0-1


[Site "https://www.chess.com"]

[Event "Titled Tuesday Blitz January 17 Late 2023"]
[White "Nazari, Arad"]
[Black "Martynov, Pavel"]
[WhiteFideId "12577324"]
[BlackFideId "4101260"]
[WhiteElo "2367"]
[BlackElo "2414"]
[Result "1-0"]
[Round "10"]
[TimeControl "180+2"]
[Date "2023.01.17"]
[WhiteClock "0:01:01"]
[BlackClock "0:00:05"]

1. e4 {[%clk 0:02:59]}  c5 {[%clk 0:02:59]} 2. Nf3 {[%clk 0:02:57]}  e6 {[%clk 0:02:59]} 3. b3 {[%clk 0:02:57]}  d5 {[%clk 0:02:59]} 4. Bb5+ {[%clk 0:02:53]}  Bd7 {[%clk 0:02:58]} 5. Bxd7+ {[%clk 0:02:49]}  Qxd7 {[%clk 0:02:47]} 6. exd5 {[%clk 0:02:50]}  Qxd5 {[%clk 0:02:46]} 7. Nc3 {[%clk 0:02:48]}  Qd8 {[%clk 0:02:42]} 8. O-O {[%clk 0:02:48]}  Nc6 {[%clk 0:02:40]} 9. Bb2 {[%clk 0:02:47]}  Nf6 {[%clk 0:02:40]} 10. Qe2 {[%clk 0:02:47]}  Be7 {[%clk 0:02:39]} 11. Ne4 {[%clk 0:02:44]}  O-O {[%clk 0:02:33]} 12. Rad1 {[%clk 0:02:42]}  Nxe4 {[%clk 0:02:25]} 13. Qxe4 {[%clk 0:02:43]}  Bf6 {[%clk 0:02:17]} 14. Ba3 {[%clk 0:02:35]}  Qa5 {[%clk 0:02:12]} 15. Qa4 {[%clk 0:02:29]}  Qxa4 {[%clk 0:02:07]} 16. bxa4 {[%clk 0:02:30]}  b6 {[%clk 0:02:03]} 17. Rfe1 {[%clk 0:02:25]}  Rfd8 {[%clk 0:02:02]} 18. d3 {[%clk 0:02:24]}  Nd4 {[%clk 0:01:56]} 19. Nxd4 {[%clk 0:02:15]}  Rxd4 {[%clk 0:01:57]} 20. Re4 {[%clk 0:02:13]}  Rad8 {[%clk 0:01:57]} 21. Rde1 {[%clk 0:02:07]}  c4 {[%clk 0:01:04]} 22. Rxd4 {[%clk 0:01:57]}  Rxd4 {[%clk 0:01:04]} 23. Re4 {[%clk 0:01:42]}  cxd3 {[%clk 0:00:50]} 24. Rxd4 {[%clk 0:01:42]}  Bxd4 {[%clk 0:00:51]} 25. cxd3 {[%clk 0:01:43]}  f6 {[%clk 0:00:46]} 26. Bb4 {[%clk 0:01:34]}  a5 {[%clk 0:00:44]} 27. Bd2 {[%clk 0:01:31]}  e5 {[%clk 0:00:43]} 28. Be3 {[%clk 0:01:27]}  Kf7 {[%clk 0:00:42]} 29. Kf1 {[%clk 0:01:15]}  Ke6 {[%clk 0:00:41]} 30. Ke2 {[%clk 0:01:15]}  Kd5 {[%clk 0:00:41]} 31. Kd2 {[%clk 0:01:15]}  Kc5 {[%clk 0:00:39]} 32. a3 {[%clk 0:01:15]}  b5 {[%clk 0:00:32]} 33. Bxd4+ {[%clk 0:01:06]}  exd4 {[%clk 0:00:32]} 34. axb5 {[%clk 0:01:04]}  Kxb5 {[%clk 0:00:32]} 35. Kc2 {[%clk 0:01:05]}  a4 {[%clk 0:00:25]} 36. Kd2 {[%clk 0:01:05]}  Kc5 {[%clk 0:00:26]} 37. Ke2 {[%clk 0:01:06]}  Kd5 {[%clk 0:00:26]} 38. Kf3 {[%clk 0:01:07]}  Ke5 {[%clk 0:00:25]} 39. Kg4 {[%clk 0:01:07]}  g6 {[%clk 0:00:20]} 40. f4+ {[%clk 0:01:08]}  Ke6 {[%clk 0:00:19]} 41. f5+ {[%clk 0:01:08]}  Ke5 {[%clk 0:00:18]} 42. fxg6 {[%clk 0:01:08]}  hxg6 {[%clk 0:00:19]} 43. h4 {[%clk 0:01:06]}  Ke6 {[%clk 0:00:09]} 44. Kf4 {[%clk 0:01:06]}  f5 {[%clk 0:00:08]} 45. Kg5 {[%clk 0:01:04]}  Ke5 {[%clk 0:00:05]} 46. g3 {[%clk 0:01:01]} 1-0


[Site "https://www.chess.com"]

[Event "Titled Tuesday Blitz January 17 Late 2023"]
[White "Lopez Gracia, Fernando"]
[Black "Weetik, Vjacheslav"]
[WhiteFideId "2207184"]
[BlackFideId "4153472"]
[WhiteElo "2255"]
[BlackElo "2423"]
[Result "1-0"]
[Round "10"]
[TimeControl "180+2"]
[Date "2023.01.17"]
[WhiteClock "0:01:30"]
[BlackClock "0:00:02"]

1. c4 {[%clk 0:03:00]}  c6 {[%clk 0:02:58]} 2. d4 {[%clk 0:03:00]}  d5 {[%clk 0:02:58]} 3. cxd5 {[%clk 0:03:01]}  cxd5 {[%clk 0:02:58]} 4. Bf4 {[%clk 0:03:01]}  Nc6 {[%clk 0:02:57]} 5. e3 {[%clk 0:03:01]}  Nf6 {[%clk 0:02:56]} 6. Nc3 {[%clk 0:03:02]}  a6 {[%clk 0:02:57]} 7. Be2 {[%clk 0:03:02]}  Bf5 {[%clk 0:02:31]} 8. Nf3 {[%clk 0:03:02]}  Rc8 {[%clk 0:02:17]} 9. O-O {[%clk 0:02:59]}  e6 {[%clk 0:02:15]} 10. Qb3 {[%clk 0:03:00]}  b5 {[%clk 0:02:04]} 11. Rfc1 {[%clk 0:02:43]}  Nd7 {[%clk 0:01:18]} 12. Nxb5 {[%clk 0:02:07]}  axb5 {[%clk 0:01:13]} 13. Bxb5 {[%clk 0:02:00]}  Na5 {[%clk 0:00:28]} 14. Bxd7+ {[%clk 0:01:45]}  Qxd7 {[%clk 0:00:21]} 15. Rxc8+ {[%clk 0:01:45]}  Qxc8 {[%clk 0:00:22]} 16. Qb5+ {[%clk 0:01:46]}  Qc6 {[%clk 0:00:11]} 17. Qxa5 {[%clk 0:01:42]}  f6 {[%clk 0:00:12]} 18. e4 {[%clk 0:01:34]}  Bxe4 {[%clk 0:00:06]} 19. Rc1 {[%clk 0:01:35]}  Qd7 {[%clk 0:00:02]} 20. Rc7 {[%clk 0:01:30]} 1-0


[Site "https://www.chess.com"]

[Event "Titled Tuesday Blitz January 17 Late 2023"]
[White "Kleiman, Jake"]
[Black "Haszon, David"]
[WhiteFideId "2020041"]
[BlackFideId "733610"]
[WhiteElo "2399"]
[BlackElo "2264"]
[Result "1-0"]
[Round "10"]
[TimeControl "180+2"]
[Date "2023.01.17"]
[WhiteClock "0:01:53"]
[BlackClock "0:00:54"]

1. e4 {[%clk 0:03:00]}  c5 {[%clk 0:02:59]} 2. c3 {[%clk 0:02:59]}  Nf6 {[%clk 0:02:58]} 3. e5 {[%clk 0:02:58]}  Nd5 {[%clk 0:02:59]} 4. Bc4 {[%clk 0:02:58]}  Qc7 {[%clk 0:02:50]} 5. Nf3 {[%clk 0:02:57]}  Nb6 {[%clk 0:02:48]} 6. Bb3 {[%clk 0:02:58]}  c4 {[%clk 0:02:46]} 7. Bc2 {[%clk 0:02:58]}  d6 {[%clk 0:02:42]} 8. exd6 {[%clk 0:02:57]}  Qxd6 {[%clk 0:02:43]} 9. Qe2 {[%clk 0:02:55]}  Nc6 {[%clk 0:02:43]} 10. Na3 {[%clk 0:02:54]}  Qd5 {[%clk 0:02:15]} 11. Be4 {[%clk 0:02:53]}  Qc5 {[%clk 0:02:05]} 12. b3 {[%clk 0:02:49]}  Be6 {[%clk 0:01:54]} 13. Rb1 {[%clk 0:02:05]}  cxb3 {[%clk 0:01:19]} 14. axb3 {[%clk 0:02:05]}  a6 {[%clk 0:01:10]} 15. O-O {[%clk 0:01:57]}  g6 {[%clk 0:01:04]} 16. b4 {[%clk 0:01:53]}  Qh5 {[%clk 0:01:03]} 17. b5 {[%clk 0:01:54]}  axb5 {[%clk 0:00:54]} 18. Rxb5 {[%clk 0:01:53]} 1-0


[Site "https://www.chess.com"]

[Event "Titled Tuesday Blitz January 17 Late 2023"]
[White "Rosen, Eric"]
[Black "Mazurkiewicz, Michal"]
[WhiteFideId "2032562"]
[BlackFideId "1124943"]
[WhiteElo "2349"]
[BlackElo "2145"]
[Result "1-0"]
[Round "10"]
[TimeControl "180+2"]
[Date "2023.01.17"]
[WhiteClock "0:00:42"]
[BlackClock "0:00:05"]

1. d4 {[%clk 0:03:00]}  Nf6 {[%clk 0:02:59]} 2. Bf4 {[%clk 0:03:00]}  g6 {[%clk 0:02:59]} 3. Nc3 {[%clk 0:03:00]}  Bg7 {[%clk 0:03:00]} 4. e4 {[%clk 0:03:00]}  O-O {[%clk 0:03:00]} 5. e5 {[%clk 0:02:58]}  Ne8 {[%clk 0:03:00]} 6. Qe2 {[%clk 0:02:59]}  d6 {[%clk 0:02:58]} 7. O-O-O {[%clk 0:02:59]}  a6 {[%clk 0:02:46]} 8. h4 {[%clk 0:02:56]}  b5 {[%clk 0:02:29]} 9. h5 {[%clk 0:02:48]}  Bb7 {[%clk 0:02:20]} 10. Qg4 {[%clk 0:02:17]}  b4 {[%clk 0:01:20]} 11. Nce2 {[%clk 0:01:24]}  Be4 {[%clk 0:01:20]} 12. Ng3 {[%clk 0:01:22]}  gxh5 {[%clk 0:01:13]} 13. Nxh5 {[%clk 0:01:17]}  Bg6 {[%clk 0:01:13]} 14. Bd3 {[%clk 0:01:11]}  Qd7 {[%clk 0:00:44]} 15. Qh4 {[%clk 0:01:06]}  Qe6 {[%clk 0:00:45]} 16. d5 {[%clk 0:00:47]}  Qxd5 {[%clk 0:00:09]} 17. Bxg6 {[%clk 0:00:46]}  Qxa2 {[%clk 0:00:08]} 18. Bxh7+ {[%clk 0:00:47]}  Kh8 {[%clk 0:00:06]} 19. Bd3 {[%clk 0:00:42]}  Qa1+ {[%clk 0:00:05]} 20. Kd2 {[%clk 0:00:42]} 1-0


[Site "https://www.chess.com"]

[Event "Titled Tuesday Blitz January 17 Late 2023"]
[White "Di Berardino, Diego Rafael"]
[Black "TheKnightOfBosnia"]
[WhiteFideId "2105446"]
[WhiteElo "2479"]
[BlackElo "2530"]
[Result "1-0"]
[Round "10"]
[TimeControl "180+2"]
[Date "2023.01.17"]
[WhiteClock "0:00:10"]
[BlackClock "0:00:02"]

1. e4 {[%clk 0:03:00]}  e5 {[%clk 0:03:00]} 2. Nf3 {[%clk 0:03:00]}  Nc6 {[%clk 0:03:00]} 3. Bc4 {[%clk 0:02:56]}  Nf6 {[%clk 0:03:00]} 4. Ng5 {[%clk 0:02:55]}  d5 {[%clk 0:03:00]} 5. exd5 {[%clk 0:02:56]}  b5 {[%clk 0:03:00]} 6. Bxb5 {[%clk 0:02:54]}  Qxd5 {[%clk 0:03:01]} 7. Bxc6+ {[%clk 0:02:47]}  Qxc6 {[%clk 0:03:00]} 8. O-O {[%clk 0:02:47]}  Bb7 {[%clk 0:02:59]} 9. f3 {[%clk 0:02:45]}  h6 {[%clk 0:02:54]} 10. Nh3 {[%clk 0:02:43]}  Bc5+ {[%clk 0:02:54]} 11. Kh1 {[%clk 0:02:42]}  O-O {[%clk 0:02:54]} 12. d3 {[%clk 0:02:42]}  Nd5 {[%clk 0:02:44]} 13. Nc3 {[%clk 0:02:40]}  Ne3 {[%clk 0:02:38]} 14. Bxe3 {[%clk 0:02:39]}  Bxe3 {[%clk 0:02:39]} 15. Qe2 {[%clk 0:02:32]}  Bd4 {[%clk 0:02:39]} 16. Rae1 {[%clk 0:02:24]}  Rfe8 {[%clk 0:02:33]} 17. Nf2 {[%clk 0:02:22]}  Bxc3 {[%clk 0:02:31]} 18. bxc3 {[%clk 0:02:22]}  Qxc3 {[%clk 0:02:32]} 19. Ne4 {[%clk 0:02:20]}  Bxe4 {[%clk 0:02:31]} 20. fxe4 {[%clk 0:02:09]}  Re6 {[%clk 0:02:06]} 21. Rf2 {[%clk 0:01:57]}  Rb8 {[%clk 0:02:04]} 22. Ref1 {[%clk 0:01:57]}  Rb2 {[%clk 0:01:06]} 23. Rxf7 {[%clk 0:01:49]}  Rg6 {[%clk 0:01:07]} 24. R7f2 {[%clk 0:01:31]}  Rxa2 {[%clk 0:00:58]} 25. h4 {[%clk 0:01:23]}  Ra1 {[%clk 0:00:53]} 26. Qh5 {[%clk 0:01:16]}  Kh7 {[%clk 0:00:35]} 27. Qf5 {[%clk 0:01:16]}  h5 {[%clk 0:00:18]} 28. Qxh5+ {[%clk 0:01:13]}  Rh6 {[%clk 0:00:19]} 29. Qf5+ {[%clk 0:01:14]}  Kg8 {[%clk 0:00:18]} 30. h5 {[%clk 0:00:46]}  Rxf1+ {[%clk 0:00:17]} 31. Rxf1 {[%clk 0:00:47]}  Qxc2 {[%clk 0:00:17]} 32. Rf3 {[%clk 0:00:31]}  Qc1+ {[%clk 0:00:16]} 33. Kh2 {[%clk 0:00:31]}  Qc6 {[%clk 0:00:14]} 34. Qxe5 {[%clk 0:00:27]}  a6 {[%clk 0:00:13]} 35. Rg3 {[%clk 0:00:23]}  Qf6 {[%clk 0:00:10]} 36. Qxf6 {[%clk 0:00:19]}  Rxf6 {[%clk 0:00:11]} 37. Rg5 {[%clk 0:00:17]}  Rd6 {[%clk 0:00:11]} 38. Ra5 {[%clk 0:00:12]}  Rxd3 {[%clk 0:00:11]} 39. Rxa6 {[%clk 0:00:13]}  Rd4 {[%clk 0:00:07]} 40. Re6 {[%clk 0:00:13]}  Kf7 {[%clk 0:00:07]} 41. Re5 {[%clk 0:00:12]}  c5 {[%clk 0:00:08]} 42. Kg3 {[%clk 0:00:12]}  c4 {[%clk 0:00:08]} 43. Kf4 {[%clk 0:00:12]}  Rd2 {[%clk 0:00:07]} 44. g4 {[%clk 0:00:11]}  c3 {[%clk 0:00:07]} 45. Rc5 {[%clk 0:00:12]}  c2 {[%clk 0:00:07]} 46. g5 {[%clk 0:00:12]}  Rh2 {[%clk 0:00:07]} 47. g6+ {[%clk 0:00:12]}  Kf8 {[%clk 0:00:06]} 48. e5 {[%clk 0:00:11]}  Ke7 {[%clk 0:00:04]} 49. Rc7+ {[%clk 0:00:09]}  Ke6 {[%clk 0:00:04]} 50. Rc6+ {[%clk 0:00:09]}  Kd5 {[%clk 0:00:04]} 51. Rc8 {[%clk 0:00:09]}  Rxh5 {[%clk 0:00:03]} 52. Rxc2 {[%clk 0:00:09]}  Rh4+ {[%clk 0:00:02]} 53. Kf5 {[%clk 0:00:08]}  Rh5+ {[%clk 0:00:02]} 54. Kf4 {[%clk 0:00:09]}  Rh4+ {[%clk 0:00:01]} 55. Kg5 {[%clk 0:00:09]}  Rh2 {[%clk 0:00:01]} 56. Rxh2 {[%clk 0:00:09]}  Kxe5 {[%clk 0:00:02]} 57. Rh7 {[%clk 0:00:09]}  Ke6 {[%clk 0:00:02]} 58. Rxg7 {[%clk 0:00:10]} 1-0


[Site "https://www.chess.com"]

[Event "Titled Tuesday Blitz January 17 Late 2023"]
[White "Chor, Kevin"]
[Black "Sukandar, Irine Kharisma"]
[WhiteFideId "2090740"]
[BlackFideId "7101937"]
[WhiteElo "1944"]
[BlackElo "2390"]
[Result "0-1"]
[Round "10"]
[TimeControl "180+2"]
[Date "2023.01.17"]
[WhiteClock "0:00:24"]
[BlackClock "0:01:01"]

1. e4 {[%clk 0:02:59]}  c5 {[%clk 0:02:58]} 2. Nf3 {[%clk 0:02:59]}  Nc6 {[%clk 0:02:58]} 3. d4 {[%clk 0:02:59]}  cxd4 {[%clk 0:02:59]} 4. Nxd4 {[%clk 0:03:00]}  e5 {[%clk 0:02:59]} 5. Nb5 {[%clk 0:03:00]}  d6 {[%clk 0:03:00]} 6. N1c3 {[%clk 0:02:59]}  a6 {[%clk 0:02:59]} 7. Na3 {[%clk 0:02:59]}  Be6 {[%clk 0:03:00]} 8. Nd5 {[%clk 0:02:49]}  Nf6 {[%clk 0:02:59]} 9. Bg5 {[%clk 0:02:42]}  Bxd5 {[%clk 0:02:55]} 10. exd5 {[%clk 0:02:15]}  Qa5+ {[%clk 0:02:54]} 11. Bd2 {[%clk 0:02:08]}  Qxd5 {[%clk 0:02:54]} 12. Nc4 {[%clk 0:02:08]}  Be7 {[%clk 0:02:46]} 13. Qe2 {[%clk 0:01:57]}  Nd4 {[%clk 0:02:44]} 14. Qd3 {[%clk 0:01:57]}  Rc8 {[%clk 0:02:25]} 15. c3 {[%clk 0:01:37]}  Ne6 {[%clk 0:02:23]} 16. Nb6 {[%clk 0:01:36]}  Qxd3 {[%clk 0:02:20]} 17. Bxd3 {[%clk 0:01:37]}  Rd8 {[%clk 0:02:18]} 18. O-O-O {[%clk 0:01:35]}  d5 {[%clk 0:02:15]} 19. Rhe1 {[%clk 0:01:33]}  e4 {[%clk 0:02:13]} 20. Be2 {[%clk 0:01:33]}  O-O {[%clk 0:02:12]} 21. Be3 {[%clk 0:01:18]}  Bc5 {[%clk 0:02:04]} 22. Bxc5 {[%clk 0:01:13]}  Nxc5 {[%clk 0:02:04]} 23. f3 {[%clk 0:01:14]}  h6 {[%clk 0:01:58]} 24. b4 {[%clk 0:01:12]}  Ne6 {[%clk 0:01:58]} 25. fxe4 {[%clk 0:01:10]}  dxe4 {[%clk 0:01:57]} 26. Kc2 {[%clk 0:01:07]}  Nf4 {[%clk 0:01:56]} 27. Bf1 {[%clk 0:01:06]}  Rfe8 {[%clk 0:01:40]} 28. g3 {[%clk 0:01:04]}  N4d5 {[%clk 0:01:40]} 29. Nc4 {[%clk 0:01:01]}  b5 {[%clk 0:01:36]} 30. Ne3 {[%clk 0:00:50]}  Nxe3+ {[%clk 0:01:34]} 31. Rxe3 {[%clk 0:00:51]}  Rxd1 {[%clk 0:01:33]} 32. Kxd1 {[%clk 0:00:51]}  Nd5 {[%clk 0:01:33]} 33. Re1 {[%clk 0:00:51]}  Nxc3+ {[%clk 0:01:33]} 34. Kc2 {[%clk 0:00:50]}  Nd5 {[%clk 0:01:23]} 35. Kb3 {[%clk 0:00:50]}  e3 {[%clk 0:01:20]} 36. a4 {[%clk 0:00:48]}  bxa4+ {[%clk 0:01:16]} 37. Kxa4 {[%clk 0:00:49]}  e2 {[%clk 0:01:13]} 38. Bg2 {[%clk 0:00:41]}  Nc3+ {[%clk 0:01:09]} 39. Kb3 {[%clk 0:00:39]}  Nb5 {[%clk 0:01:07]} 40. Bb7 {[%clk 0:00:26]}  Re6 {[%clk 0:01:05]} 41. Kc4 {[%clk 0:00:24]}  Nd6+ {[%clk 0:01:01]} 0-1


[Site "https://www.chess.com"]

[Event "Titled Tuesday Blitz January 17 Late 2023"]
[White "Hajiyev, Kanan"]
[Black "Aggelis, Nikolaos"]
[WhiteFideId "13404148"]
[BlackFideId "4213220"]
[WhiteElo "2197"]
[BlackElo "2270"]
[Result "0-1"]
[Round "10"]
[TimeControl "180+2"]
[Date "2023.01.17"]
[WhiteClock "0:00:04"]
[BlackClock "0:00:29"]

1. d4 {[%clk 0:03:00]}  Nf6 {[%clk 0:02:59]} 2. Nf3 {[%clk 0:03:01]}  g6 {[%clk 0:02:59]} 3. c4 {[%clk 0:03:00]}  Bg7 {[%clk 0:02:59]} 4. g3 {[%clk 0:03:00]}  O-O {[%clk 0:02:59]} 5. Bg2 {[%clk 0:03:01]}  d5 {[%clk 0:02:59]} 6. O-O {[%clk 0:03:00]}  Nc6 {[%clk 0:02:59]} 7. b3 {[%clk 0:02:51]}  a5 {[%clk 0:02:56]} 8. Nc3 {[%clk 0:02:47]}  Bf5 {[%clk 0:02:42]} 9. Bb2 {[%clk 0:02:40]}  Nb4 {[%clk 0:02:25]} 10. a3 {[%clk 0:02:25]}  Na6 {[%clk 0:02:20]} 11. cxd5 {[%clk 0:02:04]}  Nxd5 {[%clk 0:02:19]} 12. Nxd5 {[%clk 0:02:03]}  Qxd5 {[%clk 0:02:20]} 13. Ne5 {[%clk 0:01:57]}  Qb5 {[%clk 0:02:19]} 14. a4 {[%clk 0:01:46]}  Qb6 {[%clk 0:02:08]} 15. e4 {[%clk 0:01:43]}  Bc8 {[%clk 0:02:01]} 16. Nc4 {[%clk 0:01:32]}  Qa7 {[%clk 0:01:57]} 17. Nxa5 {[%clk 0:01:26]}  Rd8 {[%clk 0:01:56]} 18. e5 {[%clk 0:00:53]}  c5 {[%clk 0:01:49]} 19. d5 {[%clk 0:00:45]}  Be6 {[%clk 0:01:43]} 20. Qd2 {[%clk 0:00:25]}  Nb4 {[%clk 0:01:42]} 21. Nxb7 {[%clk 0:00:21]}  Rxd5 {[%clk 0:01:41]} 22. Bxd5 {[%clk 0:00:20]}  Bxd5 {[%clk 0:01:42]} 23. Nxc5 {[%clk 0:00:17]}  Qxc5 {[%clk 0:01:41]} 24. Ba3 {[%clk 0:00:18]}  Rb8 {[%clk 0:01:38]} 25. Rac1 {[%clk 0:00:16]}  Qa5 {[%clk 0:01:33]} 26. Bxb4 {[%clk 0:00:12]}  Qxb4 {[%clk 0:01:20]} 27. Rc8+ {[%clk 0:00:12]}  Bf8 {[%clk 0:01:19]} 28. Qxb4 {[%clk 0:00:04]}  Rxb4 {[%clk 0:01:18]} 29. Rd1 {[%clk 0:00:05]}  e6 {[%clk 0:01:17]} 30. Rd3 {[%clk 0:00:04]}  Kg7 {[%clk 0:01:15]} 31. a5 {[%clk 0:00:03]}  Bxb3 {[%clk 0:01:11]} 32. a6 {[%clk 0:00:03]}  Bc4 {[%clk 0:01:02]} 33. Rdd8 {[%clk 0:00:03]}  Bxa6 {[%clk 0:00:52]} 34. Rxf8 {[%clk 0:00:02]}  Bxc8 {[%clk 0:00:52]} 35. Rxc8 {[%clk 0:00:03]}  g5 {[%clk 0:00:48]} 36. Rc5 {[%clk 0:00:02]}  Kg6 {[%clk 0:00:46]} 37. Kg2 {[%clk 0:00:03]}  Kf5 {[%clk 0:00:44]} 38. Rc7 {[%clk 0:00:03]}  Kg6 {[%clk 0:00:42]} 39. Rc5 {[%clk 0:00:03]}  Re4 {[%clk 0:00:42]} 40. Kf3 {[%clk 0:00:03]}  Kf5 {[%clk 0:00:41]} 41. Rc7 {[%clk 0:00:02]}  g4+ {[%clk 0:00:42]} 42. Kg2 {[%clk 0:00:01]}  Kg6 {[%clk 0:00:40]} 43. Rc5 {[%clk 0:00:02]}  h5 {[%clk 0:00:40]} 44. h4 {[%clk 0:00:02]}  Re1 {[%clk 0:00:38]} 45. f4 {[%clk 0:00:01]}  Re2+ {[%clk 0:00:35]} 46. Kf1 {[%clk 0:00:01]}  Ra2 {[%clk 0:00:35]} 47. Ke1 {[%clk 0:00:01]}  Rb2 {[%clk 0:00:33]} 48. Kf1 {[%clk 0:00:01]}  Ra2 {[%clk 0:00:33]} 49. Rc8 {[%clk 0:00:01]}  Kf5 {[%clk 0:00:32]} 50. Rd8 {[%clk 0:00:02]}  Ke4 {[%clk 0:00:32]} 51. Rf8 {[%clk 0:00:02]}  Kf3 {[%clk 0:00:32]} 52. Ke1 {[%clk 0:00:03]}  Kxg3 {[%clk 0:00:30]} 53. Rxf7 {[%clk 0:00:03]}  Ra4 {[%clk 0:00:29]} 54. f5 {[%clk 0:00:03]}  Re4+ {[%clk 0:00:28]} 55. Kd2 {[%clk 0:00:03]}  Rxe5 {[%clk 0:00:29]} 56. fxe6 {[%clk 0:00:03]}  Rxe6 {[%clk 0:00:29]} 57. Rh7 {[%clk 0:00:04]}  Kxh4 {[%clk 0:00:29]} 0-1


[Site "https://www.chess.com"]

[Event "Titled Tuesday Blitz January 17 Late 2023"]
[White "Vaglio Munoz, Jaime"]
[Black "Karttunen, Mika"]
[WhiteFideId "6500145"]
[BlackFideId "502081"]
[WhiteElo "2174"]
[BlackElo "2490"]
[Result "1-0"]
[Round "10"]
[TimeControl "180+2"]
[Date "2023.01.17"]
[WhiteClock "0:01:01"]
[BlackClock "0:00:05"]

1. d4 {[%clk 0:03:00]}  Nf6 {[%clk 0:02:59]} 2. c4 {[%clk 0:03:00]}  g6 {[%clk 0:02:59]} 3. f3 {[%clk 0:02:58]}  Bg7 {[%clk 0:02:47]} 4. e4 {[%clk 0:02:57]}  d6 {[%clk 0:02:47]} 5. g4 {[%clk 0:02:57]}  c5 {[%clk 0:02:39]} 6. d5 {[%clk 0:02:56]}  b5 {[%clk 0:02:36]} 7. cxb5 {[%clk 0:02:54]}  a6 {[%clk 0:02:32]} 8. a4 {[%clk 0:02:53]}  Nbd7 {[%clk 0:02:29]} 9. Nc3 {[%clk 0:02:52]}  O-O {[%clk 0:02:28]} 10. h4 {[%clk 0:02:52]}  Ne5 {[%clk 0:02:22]} 11. h5 {[%clk 0:02:45]}  e6 {[%clk 0:02:16]} 12. h6 {[%clk 0:02:35]}  Bh8 {[%clk 0:02:15]} 13. g5 {[%clk 0:02:32]}  Ne8 {[%clk 0:01:49]} 14. f4 {[%clk 0:02:32]}  Nd7 {[%clk 0:01:48]} 15. dxe6 {[%clk 0:02:31]}  fxe6 {[%clk 0:01:48]} 16. Bh3 {[%clk 0:02:28]}  Nb6 {[%clk 0:01:43]} 17. a5 {[%clk 0:02:20]}  Nc4 {[%clk 0:01:32]} 18. b6 {[%clk 0:02:19]}  d5 {[%clk 0:01:15]} 19. Qe2 {[%clk 0:02:09]}  Bxc3+ {[%clk 0:00:41]} 20. bxc3 {[%clk 0:02:07]}  Ned6 {[%clk 0:00:30]} 21. exd5 {[%clk 0:02:05]}  exd5 {[%clk 0:00:30]} 22. Be6+ {[%clk 0:02:03]}  Bxe6 {[%clk 0:00:27]} 23. Qxe6+ {[%clk 0:02:02]}  Nf7 {[%clk 0:00:23]} 24. Ne2 {[%clk 0:01:54]}  Re8 {[%clk 0:00:22]} 25. Qg4 {[%clk 0:01:45]}  Re4 {[%clk 0:00:19]} 26. O-O {[%clk 0:01:44]}  Nfd6 {[%clk 0:00:16]} 27. Ng3 {[%clk 0:01:43]}  Re7 {[%clk 0:00:12]} 28. f5 {[%clk 0:01:43]}  Qd7 {[%clk 0:00:11]} 29. Ra2 {[%clk 0:01:34]}  Rf8 {[%clk 0:00:10]} 30. Raf2 {[%clk 0:01:33]}  Ne5 {[%clk 0:00:08]} 31. Qd1 {[%clk 0:01:32]}  Nxf5 {[%clk 0:00:08]} 32. Nxf5 {[%clk 0:01:31]}  gxf5 {[%clk 0:00:09]} 33. Bf4 {[%clk 0:01:30]}  Ng6 {[%clk 0:00:09]} 34. Rd2 {[%clk 0:01:28]}  d4 {[%clk 0:00:07]} 35. Qb3+ {[%clk 0:01:25]}  Qe6 {[%clk 0:00:06]} 36. Qxe6+ {[%clk 0:01:24]}  Rxe6 {[%clk 0:00:07]} 37. cxd4 {[%clk 0:01:20]}  Nxf4 {[%clk 0:00:07]} 38. dxc5 {[%clk 0:01:17]}  Ng6 {[%clk 0:00:06]} 39. Rfd1 {[%clk 0:01:14]}  Rc6 {[%clk 0:00:06]} 40. Rd8 {[%clk 0:01:11]}  Rxc5 {[%clk 0:00:06]} 41. b7 {[%clk 0:01:11]}  Rb5 {[%clk 0:00:07]} 42. R1d7 {[%clk 0:01:10]}  f4 {[%clk 0:00:04]} 43. Rg7+ {[%clk 0:01:08]}  Kh8 {[%clk 0:00:05]} 44. Rdd7 {[%clk 0:01:05]}  Rb8 {[%clk 0:00:03]} 45. Rxh7+ {[%clk 0:01:04]}  Kg8 {[%clk 0:00:04]} 46. Rdg7+ {[%clk 0:01:04]}  Kf8 {[%clk 0:00:04]} 47. Rxg6 {[%clk 0:01:04]}  R5xb7 {[%clk 0:00:05]} 48. Rh8+ {[%clk 0:01:02]}  Kf7 {[%clk 0:00:05]} 49. Rg7+ {[%clk 0:01:02]}  Ke6 {[%clk 0:00:05]} 50. Rxb8 {[%clk 0:01:01]}  Rxb8 {[%clk 0:00:06]} 51. h7 {[%clk 0:01:01]}  f3 {[%clk 0:00:06]} 52. Rg8 {[%clk 0:01:01]}  Rb1+ {[%clk 0:00:05]} 53. Kf2 {[%clk 0:01:01]} 1-0


[Site "https://www.chess.com"]